Cogmind - Beta 12 @@@ ROGUE MODE // 2023.09.18 @ 18:48:01 Player: kawyua Result: Destroyed by G-34 Mercenary with Small Laser Performance ------------- Evolutions (0) 0 Regions Visited (1) 200 Robots Destroyed (13) 65 Value Destroyed (325) 325 Prototype IDs (0) 0 Alien Tech Used (0) 0 Bonus (0) 0 TOTAL SCORE: 590 Bonus ------- None Cogmind --------- Core Integrity 0/250 Matter 269/300 Energy 125/125 System Corruption 0% Temperature Cool (6) Movement Rolling (140) Ox4 Location -10/Materials Parts ------- > --- POWER (1) -------- Light Ion Engine > --- PROPULSION (2) --- Wheel > --- UTILITY (2) ------ High-capacity Storage Unit > --- WEAPON (2) ------- Light Assault Rifle Light Assault Rifle > --- INVENTORY (20) --- Wheel Structural Scanner Improved Terrain Scanner Seismic Detector Tractor Beam EM Pulse Gun Light Assault Rifle Mining Claw Peak State ------------ > --- POWER ------------ Light Ion Engine > --- PROPULSION ------- Light Treads Light Treads > --- UTILITY ---------- Small Storage Unit Seismic Detector > --- WEAPON ----------- Medium Laser Light Assault Rifle > --- INVENTORY -------- Light Ion Engine Light Treads Aluminum Leg Aluminum Leg Wheel Wheel Improved Terrain Scanner EM Pulse Gun [Rating: 8] Favorites ----------- Power Light Ion Engine Engine Light Ion Engine Power Core Light Nuclear Core Propulsion Light Treads Treads Light Treads Wheel Wheel Utility Small Storage Unit Device Seismic Detector Storage Small Storage Unit Protection Weapon Shielding Weapon Light Assault Rifle Energy Gun Medium Laser Ballistic Gun Light Assault Rifle Build | -11 -10 ------- Run | Jun Mat Slots Evolved . | . . Power . | . . Propulsion . | . . Utility . | . . Weapon . | . . Parts Attached 28 | 6 22 Power 6 | 1 5 Engine 5 | 1 4 Core 1 | . 1 Reactor . | . . Propulsion 9 | 2 7 Treads 7 | 2 5 Leg . | . . Wheel 2 | . 2 Hover . | . . Flight . | . . Utility 4 | 1 3 Device 1 | . 1 Storage 2 | 1 1 Processor . | . . Hackware . | . . Protection 1 | . 1 Artifact . | . . Weapon 9 | 2 7 Energy Gun 4 | 1 3 Energy Cannon . | . . Ballistic Gun 5 | 1 4 Ballistic Cannon . | . . Launcher . | . . Special Weapon . | . . Impact Weapon . | . . Slashing Weapon . | . . Piercing Weapon . | . . Special Melee Weapon . | . . Unidentified Prototypes . | . . Parts Lost 8 | . 8 Power 2 | . 2 Propulsion 3 | . 3 Utility 1 | . 1 Weapon 2 | . 2 Highest Loss Streak 3 | . 3 To Critical Strikes . | . . Average Slot Usage (%) 83 | . 83 Engine 9 | . 9 Treads 18 | . 18 Wheel 5 | . 5 Storage 14 | . 14 Protection 8 | . 8 Energy Gun 13 | . 13 Ballistic Gun 10 | . 10 Naked Turns . | . . Heaviest Build 48 | 11 48 Greatest Support 40 | 40 40 Greatest Overweight (x) 4 | . 4 Average Overweight (x) 1 | . 1 Largest Inventory Capacity 20 | 8 20 Average Capacity 12 | 6 13 Most Carried 9 | 8 9 Average Carried 6 | 4 6 Final Capacity 20 | 8 20 Final Carried 8 | 8 8 Class Distribution -------------------- 100% | Mutant Dominant Class ---------------- Mutant | -10/Materials Resources | -11 -10 ----------- Run | Jun Mat Matter Collected 462 | 267 195 Remotely . | . . Salvage Created 452 | 74 378 Parts 28 | 10 18 Haulers Intercepted . | . . Recyclers Shooed . | . . Parts Field Recycled . | . . Retrieved Matter . | . . Parts Self-Destructed . | . . Prevented . | . . Kills | -11 -10 ------- Run | Jun Mat Combat Hostiles Destroyed 10 | . 10 Guns 9 | . 9 Classes Destroyed 3 | 1 2 Tunneler 3 | 3 . Swarmer 3 | . 3 Grunt 7 | . 7 Best Kill Streak 2 | 2 2 Combat Bots Only 2 | . 2 Max Kills in Single Turn 1 | 1 1 Gunslinging . | . . Exploded . | . . Melee . | . . Uniques/NPCs Destroyed . | . . Combat | -11 -10 -------- Run | Jun Mat Damage Taken 969 | . 969 Core 250 | . 250 Absorbed by Shields . | . . Redirected to Shielding 50 | . 50 Core Remaining (%) 100 | 100 . Volleys Fired 65 | 7 58 Largest 2 | 2 2 Hottest 90 | 70 90 Shots Fired 102 | 14 88 Gun 102 | 14 88 Cannon . | . . Launcher . | . . Special . | . . Kinetic 43 | 7 36 Thermal 35 | 7 28 Explosive . | . . Electromagnetic 24 | . 24 Robot Hit Streak 8 | 7 8 Robot Miss Streak 3 | 1 3 Penetration Max . | . . Secondary Targets . | . . Shots Hit Robots 69 | 10 59 Core Hits 24 | 4 20 Critical Kills . | . . Critical Parts Destroyed . | . . Critical Strikes 2 | . 2 Burn 2 | . 2 Melee Attacks . | . . Impact . | . . Slashing . | . . Piercing . | . . Sneak Attacks . | . . Combat Hostiles . | . . Follow-up Attacks . | . . Damage Inflicted 718 | 107 611 Guns 718 | 107 611 Cannons . | . . Explosions . | . . Melee . | . . Ramming . | . . Kinetic 240 | 32 208 Thermal 300 | 75 225 Explosive . | . . Electromagnetic 178 | . 178 Impact . | . . Slashing . | . . Piercing . | . . Highest Corruption . | . . Average Corruption . | . . Corruption Purged . | . . Corruption Blocked . | . . Overload Shots . | . . Overflow Damage . | . . Projectiles . | . . Explosions . | . . Melee . | . . Knockbacks . | . . Impact . | . . Kinetic . | . . Secondary . | . . Self-Inflicted Damage . | . . Shots . | . . Rammed . | . . Targets Rammed . | . . Kicked . | . . Crushed . | . . Highest Temperature 347 | 50 347 Average Temperature 108 | 22 120 Received Heat Transfer 471 | . 471 Effects 1 | . 1 Short Circuit 1 | . 1 Siege Activations . | . . Robots Corrupted . | . . Combat Hostiles . | . . Parts Fried 1 | . 1 Impact Corruptions . | . . Robots Melted 1 | . 1 Combat Hostiles 1 | . 1 Parts Melted 4 | . 4 Heat Transferred 1036 | 222 814 Parts Sabotaged . | . . Parts Stolen . | . . Parts Stripped . | . . Power Chain Reactions . | . . Missiles Intercepted . | . . Alert | -11 -10 ------- Run | Jun Mat Peak Influence 168 | 15 168 Initial 9 | . 9 Average 52 | 5 60 Maximum Alert Level . | . . Low Security (%) 100 | 100 100 Level 1 . | . . Level 2 . | . . Level 3 . | . . Level 4 . | . . Level 5 . | . . High Security . | . . Max Security . | . . Squads Dispatched 2 | . 2 Investigation 1 | . 1 Extermination . | . . Reinforcement 1 | . 1 Assault . | . . Garrison . | . . Intercept . | . . Searches Triggered . | . . Construction Impeded . | . . Haulers Reinforced . | . . Active Scanning Responses . | . . Cargo Convoy Interrupts . | . . Stealth | -11 -10 --------- Run | Jun Mat Distress Signals 1 | . 1 Communications Jammed . | . . Distress Signals . | . . Times Spotted 19 | . 19 Peak Tracking Total 6 | . 6 Tactical Retreats . | . . Traps | -11 -10 ------- Run | Jun Mat Traps Triggered 6 | . 6 Indirectly . | . . Trap Hack Attempts . | . . Triggered . | . . Disarmed . | . . Reprogrammed . | . . Reused . | . . Traps Extracted . | . . Installed . | . . Triggered . | . . Machines | -11 -10 ---------- Run | Jun Mat Machines Disabled 1 | . 1 Max in Single Turn 1 | . 1 Machines Repaired . | . . Machines Sabotaged . | . . Overloaded Fab Kills . | . . Hacking | -11 -10 --------- Run | Jun Mat Machines Accessed 5 | . 5 Terminals 4 | . 4 Fabricators . | . . Repair Stations . | . . Recycling Units 1 | . 1 Scanalyzers . | . . Garrison Access . | . . Total Hacks 10 | . 10 Successful 7 | . 7 Failed 3 | . 3 Catastrophic . | . . Database Lockouts . | . . Manual 8 | . 8 Terminals 9 | . 9 Fabricators . | . . Repair Stations . | . . Recycling Units 1 | . 1 Scanalyzers . | . . Garrison Access . | . . Terminal Hacks 3 | . 3 Terminal Index 1 | . 1 Locate Traps 1 | . 1 Hauler Manifests 1 | . 1 Fabricator Hacks . | . . Repair Station Hacks . | . . Recycling Unit Hacks . | . . Scanalyzer . | . . Garrison Access Hacks . | . . Unauthorized Hacks 4 | . 4 Terminals 3 | . 3 Botnet 2 | . 2 Operators 1 | . 1 Fabricators . | . . Repair Stations . | . . Recycling Units 1 | . 1 Recyclers 1 | . 1 Scanalyzers . | . . Garrison Access . | . . Data Cores Recovered . | . . Used . | . . Hacking Detections 4 | . 4 Full Trace Events . | . . Feedback Events . | . . Feedback Blocked . | . . Robot Schematics Acquired . | . . Robots Built . | . . Authchips . | . . Time . | . . Total Robot Build Rating . | . . Part Schematics Acquired . | . . Parts Built . | . . Authchips . | . . Time . | . . Total Part Build Rating . | . . Parts Repaired . | . . Time . | . . Parts Recycled . | . . Recycled Matter . | . . Retrieved Matter . | . . Retrieved Components . | . . Parts Scanalyzed . | . . Part Schematics Acquired . | . . Parts Damaged . | . . Bothacking | -11 -10 ------------ Run | Jun Mat Used RIF Installer . | . . Robots Hacked . | . . Non-combat . | . . Combat . | . . Robot Hacks Applied . | . . Relay Couplers Released . | . . Fabnet Peak Effective % . | . . Robots Rewired . | . . Allies Hacked . | . . Hacks Repelled . | . . Allies | -11 -10 -------- Run | Jun Mat Total Allies . | . . Largest Group . | . . Highest-Rated Group . | . . Highest-Rated Ally . | . . Total Orders . | . . Ally Attacks . | . . Total Damage . | . . Kills . | . . Allies Corrupted . | . . Allies Melted . | . . Intel | -11 -10 ------- Run | Jun Mat Robot Analysis Total . | . . Derelict Logs Recovered . | . . Drone Launches . | . . Drone Recoveries . | . . Exploration | -11 -10 ------------- Run | Jun Mat Turns Passed 1071 | 159 912 Spaces Moved 538 | 83 455 Core 23 | 11 12 Treads 333 | 72 261 Legs . | . . Wheels 182 | . 182 Hover . | . . Flight . | . . Fastest Speed 50 | 50 110 Average Speed 151 | 145 152 Slowest Speed 240 | 160 240 Overloaded Moves . | . . Propulsion Burnouts . | . . Robots Hopped . | . . Cave-ins Triggered . | . . Exploration Rate (%) 37 | 5 69 Regions Visited 1 Branch Regions . Pre-discovered Areas . | . . Known Exits Taken . | . . Unknown Exits Taken 1 | 1 . Scrap Searched . | . . Spaces Dug . | . . Terrain Destroyed . | . . Melee . | . . Projectile . | . . AOE . | . . Terrain Rammed . | . . Walls Destroyed . | . . Machines Disabled . | . . Actions | -11 -10 --------- Run | Jun Mat Total 700 | 109 591 Wait 36 | . 36 Move 537 | 82 455 Hop . | . . Pick Up 29 | 14 15 Fast Attach 7 | . 7 Attach 19 | 6 13 Detach 1 | . 1 Swap 2 | . 2 Drop 4 | . 4 Fire 65 | 7 58 Melee . | . . Ram . | . . Kick . | . . Crush . | . . Escape Stasis . | . . Rewire . | . . Trap . | . . Miscellaneous . | . . Route ------- -11/Junkyard -10/Materials (discovered 2 exits: [*Mat] / [*Min]) History --------- Turn | Location | Event 3 | -11/Junkyard | Discovered new exit (range 16) 160 | -11/Junkyard | Entered Materials 303 | -10/Materials | Build established: Mutant 364 | -10/Materials | Discovered new exit (range 11) 754 | -10/Materials | Core integrity fell below 50% 790 | -10/Materials | Lost 3 parts (1p1n1w) 852 | -10/Materials | Core integrity fell below 20% 996 | -10/Materials | Discovered new exit (range 3) 1072 | -10/Materials | Destroyed by G-34 Mercenary with Small Laser Last Messages --------------- 00834_ S-10 Pest destroyed. 00852_ R-06 Scavenger collects Broken Lgt. Assault Rifle. 00854_ Destroyed Flight Unit. 00856_ Lgt. Treads destroyed. 00856_ S-10 Pest destroyed. 00857_ Lgt. Nuclear Core destroyed. 00861_ Electrolysis Chamber disabled. 00863_ S-10 Pest destroyed. 00868_ Acquired Lgt. Assault Rifle. 00996_ EXIT=FOUND 01016_ Acquired Structural Scanner. 01019_ Acquired EM Pulse Gun. 01029_ Acquired Mining Claw. 01046_ Acquired Wheel. 01061_ Triggered Alarm Trap. 01061_ An alarm sounds. 01061_ ALERT: Alarm triggered, dispatching investigation squad. 01061_ Weapon Shielding destroyed. 01063_ EM Pulse Gun destroyed. 01070_ Wheel destroyed. Map ----- +----------------------------------------------------+ | # # T | | # # ^ ## ##### | | # # ########### ^^ % ## #???? | | # + # # ##+####/###???? | | # ### "Y" # ## [! #???? | | # #?# """ # ##= """"" #???? | | # #?# # ## """"" #???? | | # #?#######+### ### ##* """" +???? | | ######???????# #?# #?# ## #???? | | ?????????????# #?# ###?# ## """" #???? | | ?????????????# ### #???# ## """"" #???? | | ?????????????# #???# ## """"" #???? | | ???????############# #???? ## #???^ | | ???????# #??# #????+?#####+###????? | | ???????# """ #??# #???????????????????? | | ???????# """ #??# #???????????????????? | | ???????# """ #??# #???????????????????? | | ######## #??# #???????????????????? | | # # """ #??# #???????????????????? | | # """ #! """ ####+#####???????????????? | | # """ # """ # #???????????????? | | # """ # # #???????????????? | | # #+#+###+## #???????????????? | | # """ # #k #???????????????? | | # """ + g #???????????????? | | # """ # #@ #???????????????? | | # # < # #???????????????? | | # """ # # #???????????????? | | # """ + ###### #???????????????? | | # """ #####????##########???????????????? | | # #?????????????????????????????????? | | ########?????????????????????????????????? | | ?????????????????????????????????????????? | | ?????????????????????????????????????????? | | | | | | | | | | | | | | | | | | | | | | | | | | | | | | | | | +----------------------------------------------------+ Best States ------------- Heat Dissipation 25 Energy Generation 14 Energy Capacity 160 Matter Stores 300 Matter Capacity 300 Sight Range 16 Terrain Scan Density 10 Weapon Shielding 33 Evasion (%) 50 Recoil Reduction 2 Item Schematics ----------------- None Robot Schematics ------------------ None Fabricated ------------ Nothing Alien Tech Used ----------------- None Achievements -------------- None Challenges ------------ None Game ------ Seed MasterSpliceAccelerator Manual? 0 Play Time 00:11:36 Cumulative 162.8 hours Start 2023.09.18 @ 18:38:05 End 2023.09.18 @ 18:48:01 Sessions 1 Manual Loads 0 Difficulty Rogue Special Mode None Game No. 45 Rogue 45 Adventurer 0 Explorer 0 Win Type - Total 6 Types 6/0/0/0/0/0/0/0/0 Lore% 45 Gallery% 56 Achievement% 49 Wizard Run 0 Options --------- ASCII 0 Keyboard 0 Movement Mouse Keybinds 0 Fullscreen 2 Font 16/SmallcapsGlow Map View 75x55 Tactical HUD 1 Map Filters NONE Filters NONE Steam 1 RUN: a77105fa-76a7-4e93-9556-78c9f43830e6